fUST/lending_fUST_20240927
["ID","MTS","AMOUNT","RATE_DAILY","PERIOD"]
[339316923,1727451047471,-352.244809,0.00020253,2]
[339316925,1727451047480,-352.244809,0.00020253,2]
[339316927,1727451047489,-1255.7778,0.00020253,2]
[339316929,1727451047501,-1255.7778,0.00020253,2]
[339316931,1727451047510,-151.0,0.00020261,2]
[339316933,1727451047521,-473.733713,0.00020261,2]
[339316936,1727451047532,-473.733713,0.00020261,2]
[339316938,1727451047542,-163.778328,0.00020261,2]
[339316940,1727451047553,-163.778328,0.00020261,2]
[339316942,1727451047562,-367.599976,0.00020261,2]
[339316944,1727451047571,-367.599976,0.00020261,2]
[339316946,1727451047583,-151.0,0.00020261,2]
[339316948,1727451047594,-151.0,0.00020261,2]
[339316950,1727451047603,-468.913025,0.00020261,2]
[339316952,1727451047613,-468.913025,0.00020261,2]
[339316954,1727451047622,-1282.391814,0.00020261,2]
[339316956,1727451047631,-1282.391814,0.00020261,2]
[339316958,1727451047641,-352.286197,0.00020261,2]
[339316960,1727451047650,-352.286197,0.00020261,2]
[339316962,1727451047659,-151.0,0.00020261,2]
[339316964,1727451047669,-151.0,0.00020261,2]
[339316966,1727451047679,-532.644722,0.00020261,2]
[339316968,1727451047688,-532.644722,0.00020261,2]
[339316971,1727451047698,-9491.89751127,0.00020263,3]
[339316973,1727451047708,-600.96,0.00020273,2]
[339316975,1727451047717,-500.0,0.00020273,2]
[339316977,1727451047726,-589.63,0.00020273,2]
[339316979,1727451047735,-859.14,0.00020273,2]
[339316980,1727451047744,-722.67,0.00020273,2]
[339316982,1727451047753,-327.7212305,0.00020273,2]
[339316984,1727451047762,-500.0,0.00020273,2]
[339316986,1727451047772,-500.0,0.00020273,2]
[339316989,1727451047782,-200.0,0.00020273,2]
[339316991,1727451047792,-500.0,0.00020273,2]
[339316993,1727451047801,-728.24,0.00020273,2]
[339316994,1727451047813,-500.0,0.00020273,2]
[339316997,1727451047822,-500.0,0.00020273,2]
[339316999,1727451047832,-989.42,0.00020273,2]
[339317000,1727451047841,-1306.32,0.00020273,2]
[339317002,1727451047851,-500.0,0.00020273,2]
[339317004,1727451047860,-500.0,0.00020273,2]
[339317006,1727451047870,-500.0,0.00020273,2]
[339317008,1727451047879,-496.85831799,0.00020273,2]
[339317010,1727451047888,-500.0,0.00020273,2]
[339317013,1727451047898,-500.0,0.00020273,2]
[339317015,1727451047908,-500.0,0.00020273,2]
[339317017,1727451047918,-500.0,0.00020273,2]
[339317018,1727451047927,-500.0,0.00020273,2]
[339317020,1727451047936,-2778.89,0.00020273,2]
[339317022,1727451047945,-500.0,0.00020273,2]
[339317024,1727451047955,-929.01,0.00020273,2]
[339317026,1727451047964,-181.95433877,0.00020273,2]
[339317029,1727451047975,-11603.13,0.00020273,2]
[339317031,1727451047984,-703.36,0.00020273,2]
[339317032,1727451047993,-500.0,0.00020273,2]
[339317034,1727451048002,-2096.72,0.00020273,2]
[339317036,1727451048011,-1242.21,0.00020273,2]
[339317039,1727451048023,-150.112233,0.000203,3]
[339317041,1727451048032,-151.0,0.00020312,2]
[339317042,1727451048041,-151.0,0.00020312,2]
[339317045,1727451048051,-428.0,0.00020319,2]
[339317046,1727451048062,-151.0,0.00020322,2]
[339317048,1727451048071,-151.0,0.00020322,2]
[339317050,1727451048081,-417.044971,0.00020322,2]
[339317052,1727451048090,-417.044971,0.00020322,2]
[339317054,1727451048100,-151.0,0.00020322,2]
[339317057,1727451048110,-9491.89751127,0.00020322,3]
[339317058,1727451048119,-354.72326294,0.00020331,2]
[339317061,1727451048129,-12081.52708458,0.00020331,2]
[339317063,1727451048139,-154.098856,0.00020331,2]
[339317065,1727451048148,-933.847499,0.00020331,2]
[339317067,1727451048158,-933.847499,0.00020331,2]
[339317069,1727451048168,-151.0,0.00020331,2]
[339317071,1727451048178,-146598.35621963,0.00020332,2]
[339317072,1727451048188,-151.0,0.00020332,2]
[339317075,1727451048199,-151.0,0.00020332,2]
[339317077,1727451048214,-151.0,0.00020332,2]
[339317079,1727451048233,-151.0,0.00020332,2]
[339317081,1727451048245,-151.0,0.00020332,2]
[339317083,1727451048255,-195.162211,0.00020332,2]
[339317085,1727451048265,-195.162211,0.00020332,2]
[339317087,1727451048274,-151.0,0.00020332,2]
[339317088,1727451048284,-320.460898,0.00020332,2]
[339317090,1727451048293,-320.460898,0.00020332,2]
[339317092,1727451048306,-151.0,0.00020332,2]
[339317094,1727451048316,-207.511894,0.00020332,2]
[339317097,1727451048326,-151.0,0.00020332,2]
[339317099,1727451048336,-151.0,0.00020332,2]
[339317101,1727451048345,-151.0,0.00020332,2]
[339317103,1727451048355,-151.0,0.00020332,2]
[339317105,1727451048367,-151.0,0.00020332,2]
[339317107,1727451048377,-164.391197,0.00020332,2]
[339317109,1727451048386,-164.391197,0.00020332,2]
[339317111,1727451048396,-353.878134,0.00020332,2]
[339317113,1727451048406,-353.878134,0.00020332,2]
[339317115,1727451048419,-345.700834,0.00020332,2]
[339317116,1727451048431,-151.0,0.00020332,2]
[339317118,1727451048440,-151.0,0.00020332,2]
[339317120,1727451048450,-151.0,0.00020332,2]
[339317122,1727451048459,-151.0,0.00020332,2]
[339317124,1727451048468,-151.0,0.00020332,2]
[339317126,1727451048479,-355.877557,0.00020332,2]
[339317128,1727451048488,-355.877557,0.00020332,2]
[339317130,1727451048498,-151.0,0.00020332,2]
[339317132,1727451048508,-151.0,0.00020332,2]
[339317134,1727451048518,-151.0,0.00020332,2]
[339317136,1727451048527,-151.0,0.00020332,2]
[339317139,1727451048537,-151.0,0.00020332,2]
[339317150,1727451048641,-151.0,0.00020332,2]
[339317152,1727451048652,-417.044971,0.00020332,2]
[339317154,1727451048661,-417.044971,0.00020332,2]
[339317156,1727451048671,-151.0,0.00020332,2]
[339317158,1727451048680,-927.334302,0.00020332,2]
[339317160,1727451048690,-151.0,0.00020332,2]
[339317161,1727451048699,-927.334302,0.00020332,2]
[339317163,1727451048709,-151.0,0.00020332,2]
[339317165,1727451048718,-473.733713,0.00020332,2]
[339317167,1727451048728,-473.733713,0.00020332,2]
[339317169,1727451048737,-163.778328,0.00020332,2]
[339317171,1727451048747,-163.778328,0.00020332,2]
[339317173,1727451048756,-367.599976,0.00020332,2]
[339317175,1727451048766,-367.599976,0.00020332,2]
[339317177,1727451048776,-151.0,0.00020332,2]
[339317179,1727451048787,-195.918373,0.00020332,2]
[339317182,1727451048798,-468.913025,0.00020332,2]
[339317184,1727451048810,-468.913025,0.00020332,2]
[339317186,1727451048820,-1282.391814,0.00020332,2]
[339317188,1727451048830,-1282.391814,0.00020332,2]
[339317190,1727451048839,-352.286197,0.00020332,2]
[339317192,1727451048849,-352.286197,0.00020332,2]
[339317194,1727451048858,-151.0,0.00020332,2]
[339317195,1727451048868,-352.244809,0.00020332,2]
[339317198,1727451048878,-352.244809,0.00020332,2]
[339317200,1727451048888,-158.142389,0.00020332,2]
[339317202,1727451048898,-151.0,0.00020332,2]
[339317204,1727451048908,-714.019764,0.00020332,2]
[339317205,1727451048918,-714.019764,0.00020332,2]
[339317208,1727451048927,-714.019764,0.00020332,2]
[339317210,1727451048937,-714.019764,0.00020332,2]
[339317211,1727451048947,-1255.7778,0.00020332,2]
[339317213,1727451048956,-532.644722,0.00020332,2]
[339317215,1727451048966,-1255.7778,0.00020332,2]
[339317217,1727451048976,-532.644722,0.00020332,2]
[339317219,1727451048987,-151.0,0.00020332,2]
[339317221,1727451048996,-151.0,0.00020332,2]
[339317223,1727451049005,-151.0,0.00020332,2]
[339317225,1727451049014,-151.0,0.00020332,2]
[339317227,1727451049023,-151.0,0.00020332,2]
[339317229,1727451049032,-151.0,0.00020332,2]
[339317231,1727451049043,-326.193347,0.00020332,2]
[339317233,1727451049054,-326.193347,0.00020332,2]
[339317235,1727451049063,-326.193347,0.00020332,2]
[339317237,1727451049072,-326.193347,0.00020332,2]
[339317239,1727451049082,-933.847499,0.00020332,2]
[339317241,1727451049091,-933.847499,0.00020332,2]
[339317242,1727451049100,-1167.105684,0.00020332,2]
[339317244,1727451049110,-933.847499,0.00020332,2]
[339317246,1727451049119,-1167.105684,0.00020332,2]
[339317248,1727451049129,-933.847499,0.00020332,2]
[339317250,1727451049139,-1167.105684,0.00020332,2]
[339317252,1727451049148,-1167.105684,0.00020332,2]
[339317254,1727451049158,-151.0,0.00020332,2]
[339317256,1727451049168,-151.0,0.00020332,2]
[339317258,1727451049178,-150.0,0.00020332,2]
[339317260,1727451049187,-541.0,0.00020332,2]
[339317262,1727451049197,-150.0,0.00020359,2]
[339317264,1727451049206,-541.0,0.00020359,2]
[339317266,1727451049216,-324.428198,0.00020367,2]
[339317268,1727451049226,-324.428198,0.00020367,2]
[339317270,1727451049236,-151.0,0.00020367,2]
[339317272,1727451049245,-151.0,0.00020367,2]
[339317274,1727451049254,-151.0,0.00020367,2]
[339317276,1727451049264,-151.0,0.00020367,2]
[339317278,1727451049273,-231.905721,0.00020367,2]
[339317280,1727451049282,-231.905721,0.00020367,2]
[339317282,1727451049291,-417.044971,0.00020367,2]
[339317283,1727451049301,-417.044971,0.00020367,2]
[339317285,1727451049318,-661.479801,0.00020367,2]
[339317287,1727451049328,-661.479801,0.00020367,2]
[339317289,1727451049338,-151.0,0.00020367,2]
[339317291,1727451049347,-927.334302,0.00020367,2]
[339317293,1727451049356,-927.334302,0.00020367,2]
[339317295,1727451049368,-500.0,0.00020373,2]
[339317297,1727451049378,-500.0,0.00020373,2]
[339317299,1727451049388,-500.0,0.00020373,2]
[339317301,1727451049398,-127592.44402977,0.00020377,2]
[339317321,1727451049585,-443.03509018,0.00015256,2]
[339317323,1727451049597,-2102.36457405,0.00015256,2]
[339317325,1727451049606,-341.48494917,0.00019178,2]
[339317327,1727451049618,-173.27492563,0.00019178,2]
[339317329,1727451049627,-194.79716746,0.00019178,2]
[339317331,1727451049638,-305.20283254,0.00019178,2]
[339317333,1727451049648,-500.0,0.00019178,2]
[339317335,1727451049657,-500.0,0.00019452,2]
[339317337,1727451049666,-263.196275,0.00019452,2]
[339317339,1727451049676,-263.196275,0.00019716,2]
[339317341,1727451049687,-263.196275,0.0001999,2]
[339317343,1727451049697,-263.196275,0.00020331,2]
[339317345,1727451049706,-263.196275,0.00020332,2]
[339317347,1727451049715,-1136.8487029,0.00020377,2]
[339317353,1727451049771,-188.66650515,0.00019157,2]
[339317355,1727451049781,-503.70128654,0.00019178,2]
[339317357,1727451049790,-505.93642412,0.00019178,2]
[339317359,1727451049800,-263.196275,0.00019432,2]
[339317361,1727451049811,-263.196275,0.00020332,2]
[339317363,1727451049820,-580.60323418,0.00020377,2]
[339317365,1727451049832,-17503.10403315,0.00020377,2]
[339317367,1727451049842,-151.0,0.00020377,2]
[339317369,1727451049852,-151.0,0.00020377,2]
[339317371,1727451049862,-151.0,0.00020377,2]
[339317373,1727451049871,-151.0,0.00020377,2]
[339317375,1727451049881,-151.0,0.00020377,2]
[339317377,1727451049890,-152.837227,0.00020377,2]
[339317379,1727451049904,-195.162211,0.00020377,2]
[339317382,1727451049915,-195.162211,0.00020377,2]
[339317384,1727451049925,-151.0,0.00020377,2]
[339317386,1727451049935,-320.460898,0.00020377,2]
[339317388,1727451049944,-320.460898,0.00020377,2]
[339317389,1727451049954,-151.0,0.00020377,2]
[339317391,1727451049964,-151.0,0.00020377,2]
[339317393,1727451049973,-151.0,0.00020377,2]
[339317395,1727451049983,-151.0,0.00020377,2]
[339317397,1727451049992,-164.391197,0.00020377,2]
[339317399,1727451050001,-164.391197,0.00020377,2]
[339317401,1727451050013,-164.391197,0.00020377,2]
[339317403,1727451050023,-164.391197,0.00020377,2]
[339317405,1727451050033,-353.878134,0.00020377,2]
[339317407,1727451050043,-353.878134,0.00020377,2]
[339317409,1727451050054,-345.700834,0.00020377,2]
[339317411,1727451050064,-151.0,0.00020377,2]
[339317413,1727451050074,-151.0,0.00020377,2]
[339317415,1727451050084,-151.0,0.00020377,2]
[339317417,1727451050093,-163.615854,0.00020377,2]
[339317419,1727451050103,-355.877557,0.00020377,2]
[339317421,1727451050114,-355.877557,0.00020377,2]
[339317423,1727451050125,-324.428198,0.00020377,2]
[339317425,1727451050135,-324.428198,0.00020377,2]
[339317427,1727451050145,-261.754001,0.00020377,2]
[339317429,1727451050155,-151.0,0.00020377,2]
[339317431,1727451050165,-151.0,0.00020377,2]
[339317433,1727451050175,-231.905721,0.00020377,2]
[339317435,1727451050184,-231.905721,0.00020377,2]
[339317437,1727451050195,-151.0,0.00020377,2]
[339317439,1727451050204,-417.044971,0.00020377,2]
[339317441,1727451050213,-417.044971,0.00020377,2]
[339317443,1727451050223,-661.479801,0.00020377,2]
[339317445,1727451050233,-661.479801,0.00020377,2]
[339317447,1727451050242,-151.0,0.00020377,2]
[339317449,1727451050252,-151.0,0.00020377,2]
[339317451,1727451050262,-927.334302,0.00020377,2]
[339317453,1727451050271,-927.334302,0.00020377,2]
[339317455,1727451050280,-233.336942,0.00020377,2]
[339317457,1727451050289,-473.733713,0.00020377,2]
[339317459,1727451050299,-473.733713,0.00020377,2]
[339317461,1727451050313,-163.778328,0.00020377,2]
[339317463,1727451050327,-163.778328,0.00020377,2]
[339317465,1727451050337,-367.599976,0.00020377,2]
[339317467,1727451050347,-367.599976,0.00020377,2]
[339317469,1727451050356,-151.0,0.00020377,2]
[339317471,1727451050368,-468.913025,0.00020377,2]
[339317473,1727451050377,-468.913025,0.00020377,2]
[339317475,1727451050386,-1282.391814,0.00020377,2]
[339317477,1727451050396,-1282.391814,0.00020377,2]
[339317479,1727451050406,-352.286197,0.00020377,2]
[339317481,1727451050418,-352.286197,0.00020377,2]
[339317483,1727451050428,-151.0,0.00020377,2]
[339317485,1727451050438,-352.244809,0.00020377,2]
[339317487,1727451050449,-352.244809,0.00020377,2]
[339317489,1727451050459,-151.0,0.00020377,2]
[339317491,1727451050470,-714.019764,0.00020377,2]
[339317493,1727451050479,-714.019764,0.00020377,2]
[339317495,1727451050489,-1255.7778,0.00020377,2]
[339317497,1727451050500,-532.644722,0.00020377,2]
[339317499,1727451050510,-1255.7778,0.00020377,2]
[339317501,1727451050519,-532.644722,0.00020377,2]
[339317503,1727451050529,-151.0,0.00020377,2]
[339317504,1727451050538,-151.0,0.00020377,2]
[339317506,1727451050547,-151.0,0.00020377,2]
[339317508,1727451050561,-326.193347,0.00020377,2]
[339317510,1727451050570,-326.193347,0.00020377,2]
[339317512,1727451050581,-933.847499,0.00020377,2]
[339317515,1727451050593,-1167.105684,0.00020377,2]
[339317517,1727451050602,-933.847499,0.00020377,2]
[339317518,1727451050611,-1167.105684,0.00020377,2]
[339317520,1727451050621,-151.0,0.00020377,2]
[339317522,1727451050631,-263.196275,0.00020377,2]
[339317524,1727451050640,-150.0,0.00020387,2]
[339317526,1727451050650,-541.0,0.00020387,2]
[339317528,1727451050660,-228.0,0.000204,2]
[339317530,1727451050670,-3264.54351685,0.00020404,2]
[339317532,1727451050680,-541.0,0.00020414,2]
[339317534,1727451050690,-541.0,0.00020442,2]
[339317536,1727451050700,-541.0,0.00020469,2]
[339317538,1727451050711,-541.0,0.00020496,2]
[339317540,1727451050722,-483.52,0.00020518,3]
[339317542,1727451050733,-725.32,0.00020518,3]
[339317544,1727451050744,-362.66,0.00020518,3]
[339317546,1727451050754,-1000.0,0.00020521,2]
[339317548,1727451050764,-1000.0,0.00020521,2]
[339317550,1727451050773,-1000.0,0.00020521,2]
[339317552,1727451050784,-541.0,0.00020524,2]
[339317555,1727451050796,-151.0,0.00020527,2]
[339317557,1727451050806,-500.0,0.00020537,2]
[339317559,1727451050817,-500.0,0.00020537,2]
[339317561,1727451050827,-151.0,0.00020547,2]
[339317563,1727451050836,-600.96,0.00020547,2]
[339317565,1727451050846,-500.0,0.00020547,2]
[339317567,1727451050856,-589.63,0.00020547,2]
[339317569,1727451050866,-859.14,0.00020547,2]
[339317571,1727451050876,-722.67,0.00020547,2]
[339317573,1727451050886,-500.0,0.00020547,2]
[339317575,1727451050898,-500.0,0.00020547,2]
[339317577,1727451050908,-200.0,0.00020547,2]
[339317579,1727451050917,-728.24,0.00020547,2]
[339317581,1727451050927,-500.0,0.00020547,2]
[339317582,1727451050936,-500.0,0.00020547,2]
[339317584,1727451050946,-989.42,0.00020547,2]
[339317586,1727451050955,-1306.32,0.00020547,2]
[339317588,1727451050964,-500.0,0.00020547,2]
[339317590,1727451050974,-347.60765609,0.00020547,2]
[339317592,1727451050983,-1255.7778,0.00020547,2]
[339317594,1727451050992,-1255.7778,0.00020547,2]
[339317596,1727451051002,-500.0,0.00020547,2]
[339317598,1727451051012,-500.0,0.00020547,2]
[339317600,1727451051022,-500.0,0.00020547,2]
[339317602,1727451051031,-500.0,0.00020547,2]
[339317604,1727451051040,-500.0,0.00020547,2]
[339317606,1727451051050,-500.0,0.00020547,2]
[339317617,1727451051150,-2778.89,0.00020547,2]
[339317618,1727451051160,-500.0,0.00020547,2]
[339317620,1727451051170,-929.01,0.00020547,2]
[339317622,1727451051180,-11603.13,0.00020547,2]
[339317624,1727451051190,-703.36,0.00020547,2]
[339317626,1727451051200,-500.0,0.00020547,2]
[339317628,1727451051210,-2096.72,0.00020547,2]
[339317629,1727451051220,-1242.21,0.00020547,2]
[339317630,1727451051240,-541.0,0.00020551,2]
[339317631,1727451051251,-541.0,0.00020579,2]
[339317632,1727451051261,-541.0,0.00020606,2]
[339317633,1727451051271,-9602.5888428,0.0002061,2]
[339317634,1727451051282,-541.0,0.00020633,2]
[339317635,1727451051293,-541.0,0.00020661,2]
[339317636,1727451051302,-541.0,0.00020688,2]
[339317637,1727451051315,-160.612769,0.000207,2]
[339317638,1727451051325,-165.763529,0.000207,5]
[339317639,1727451051335,-153.0,0.00020712,2]
[339317640,1727451051345,-541.0,0.00020716,2]
[339317641,1727451051355,-541.0,0.00020743,2]
[339317642,1727451051366,-541.0,0.0002077,2]
[339317643,1727451051376,-541.0,0.00020798,2]
[339317644,1727451051386,-150.112233,0.000208,5]
[339317645,1727451051396,-353.878134,0.00020821,2]
[339317646,1727451051407,-353.878134,0.00020821,2]
[339317647,1727451051418,-345.700834,0.00020821,2]
[339317648,1727451051429,-600.96,0.00020821,2]
[339317650,1727451051439,-355.877557,0.00020821,2]
[339317652,1727451051449,-355.877557,0.00020821,2]
[339317654,1727451051459,-500.0,0.00020821,2]
[339317656,1727451051469,-589.63,0.00020821,2]
[339317658,1727451051479,-859.14,0.00020821,2]
[339317660,1727451051489,-722.67,0.00020821,2]
[339317662,1727451051500,-500.0,0.00020821,2]
[339317664,1727451051510,-500.0,0.00020821,2]
[339317666,1727451051520,-200.0,0.00020821,2]
[339317668,1727451051529,-473.733713,0.00020821,2]
[339317670,1727451051541,-473.733713,0.00020821,2]
[339317672,1727451051551,-163.778328,0.00020821,2]
[339317674,1727451051562,-163.778328,0.00020821,2]
[339317677,1727451051574,-728.24,0.00020821,2]
[339317679,1727451051584,-512.01083386,0.00020821,2]
[339317681,1727451051595,-367.599976,0.00020821,2]
[339317683,1727451051605,-367.599976,0.00020821,2]
[339317685,1727451051616,-151.0,0.00020821,2]
[339317687,1727451051626,-500.0,0.00020821,2]
[339317689,1727451051636,-468.913025,0.00020821,2]
[339317691,1727451051647,-468.913025,0.00020821,2]
[339317693,1727451051658,-989.42,0.00020821,2]
[339317695,1727451051667,-1282.391814,0.00020821,2]
[339317697,1727451051678,-1282.391814,0.00020821,2]
[339317699,1727451051688,-1306.32,0.00020821,2]
[339317701,1727451051698,-352.286197,0.00020821,2]
[339317704,1727451051707,-352.286197,0.00020821,2]
[339317706,1727451051717,-185.30047,0.00020821,2]
[339317708,1727451051727,-500.0,0.00020821,2]
[339317710,1727451051736,-151.0,0.00020821,2]
[339317711,1727451051745,-532.644722,0.00020821,2]
[339317713,1727451051755,-532.644722,0.00020821,2]
[339317715,1727451051765,-500.0,0.00020821,2]
[339317717,1727451051774,-640.47,0.00020821,2]
[339317719,1727451051784,-500.0,0.00020821,2]
[339317721,1727451051793,-500.0,0.00020821,2]
[339317723,1727451051804,-500.0,0.00020821,2]
[339317725,1727451051817,-500.0,0.00020821,2]
[339317727,1727451051826,-2778.89,0.00020821,2]
[339317729,1727451051835,-500.0,0.00020821,2]
[339317731,1727451051845,-929.01,0.00020821,2]
[339317734,1727451051858,-11603.13,0.00020821,2]
[339317736,1727451051869,-703.36,0.00020821,2]
[339317738,1727451051878,-500.0,0.00020821,2]
[339317740,1727451051888,-2096.72,0.00020821,2]
[339317742,1727451051898,-1242.21,0.00020821,2]
[339317743,1727451051908,-473.733713,0.00020825,2]
[339317745,1727451051918,-473.733713,0.00020825,2]
[339317747,1727451051928,-163.778328,0.00020825,2]
[339317750,1727451051938,-163.778328,0.00020825,2]
[339317752,1727451051948,-367.599976,0.00020825,2]
[339317753,1727451051957,-367.599976,0.00020825,2]
[339317756,1727451051967,-151.0,0.00020825,2]
[339317758,1727451051977,-468.913025,0.00020825,2]
[339317760,1727451051986,-468.913025,0.00020825,2]
[339317762,1727451051996,-1282.391814,0.00020825,2]
[339317764,1727451052005,-1282.391814,0.00020825,2]
[339317766,1727451052015,-352.286197,0.00020825,2]
[339317768,1727451052025,-352.286197,0.00020825,2]
[339317770,1727451052035,-279.361945,0.00020825,2]
[339317772,1727451052044,-532.644722,0.00020825,2]
[339317774,1727451052057,-532.644722,0.00020825,2]
[339317776,1727451052067,-933.847499,0.00020825,2]
[339317778,1727451052077,-933.847499,0.00020825,2]
[339317780,1727451052088,-263.196275,0.00020825,2]
[339317782,1727451052099,-541.0,0.00020825,2]
[339317784,1727451052110,-541.0,0.00020853,2]
[339317786,1727451052119,-541.0,0.0002088,2]
[339317788,1727451052129,-151.722611,0.0002088,2]
[339317790,1727451052139,-11013.158061,0.000209,2]
[339317792,1727451052149,-150.112233,0.000209,2]
[339317794,1727451052159,-352.244809,0.000209,2]
[339317796,1727451052168,-352.244809,0.000209,2]
[339317798,1727451052178,-352.244809,0.000209,2]
[339317800,1727451052188,-352.244809,0.000209,2]
[339317802,1727451052198,-1255.7778,0.000209,2]
[339317804,1727451052207,-1255.7778,0.000209,2]
[339317806,1727451052218,-151.0,0.000209,2]
[339317809,1727451052228,-326.193347,0.000209,2]
[339317811,1727451052238,-326.193347,0.000209,2]
[339317812,1727451052247,-1167.105684,0.000209,2]
[339317814,1727451052256,-1167.105684,0.000209,2]
[339317816,1727451052267,-714.019764,0.00020907,2]
[339317818,1727451052276,-714.019764,0.00020907,2]
[339317820,1727451052286,-151.0,0.00020907,2]
[339317823,1727451052299,-151.0,0.00020907,2]
[339317825,1727451052310,-541.0,0.00020907,2]
[339317827,1727451052320,-1000.0,0.00020921,2]
[339317829,1727451052331,-1000.0,0.00020921,2]
[339317831,1727451052340,-1000.0,0.00020921,2]
[339317833,1727451052351,-151.0,0.00020921,2]
[339317835,1727451052362,-151.0,0.00020921,2]
[339317837,1727451052372,-541.0,0.00020935,2]
[339317839,1727451052382,-557.00013,0.00020962,2]
[339317841,1727451052391,-151.0,0.0002099,2]
[339317843,1727451052401,-2270.53136612,0.00021,4]
[339317845,1727451052411,-4996.49053934,0.00021,5]
[339317847,1727451052424,-29922.87937558,0.00021,5]
[339317850,1727451052441,-2334.79572801,0.00021,5]
[339317853,1727451052458,-1373.08025271,0.00021,5]
[339321821,1727451406064,163.897542,0.00013866,2]
[339321869,1727451847159,170.165543,0.00014094,2]
[339321876,1727451948452,8712.4789824,0.00013769,2]
[339321877,1727451955726,163.8975436,0.00013699,2]
[339321880,1727452010539,24900.0,0.00013634,2]
[339321882,1727452152122,-170.165543,0.00014133,2]
[339321883,1727452152146,-39.05080189,0.00014171,2]
[339321923,1727452232092,-131.11474111,0.00014171,2]
[339321925,1727452232102,-170.165543,0.0001421,2]
[339321927,1727452232112,-170.165543,0.00014249,2]
[339321929,1727452232123,-170.165543,0.00014287,2]
[339321931,1727452232132,-170.165543,0.00014326,2]
[339321933,1727452232144,-170.165543,0.00014365,2]
[339321935,1727452232153,-170.165543,0.00014403,2]
[339321937,1727452232163,-170.165543,0.00014442,2]
[339321939,1727452232174,-170.165543,0.00014481,2]
[339321941,1727452232184,-170.165543,0.00014519,2]
[339321943,1727452232194,-170.165543,0.00014558,2]
[339321945,1727452232203,-170.165543,0.00014597,2]
[339321947,1727452232214,-170.165543,0.00014635,2]
[339321950,1727452232226,-170.165543,0.00014674,2]
[339321952,1727452232236,-170.165543,0.00014713,2]
[339321954,1727452232246,-170.165543,0.00014751,2]
[339321956,1727452232255,-170.165543,0.0001479,2]
[339321958,1727452232265,-170.165543,0.00014829,2]
[339321960,1727452232274,-194.429283,0.00015002,2]
[339321962,1727452232288,-1001.64174489,0.00016,2]
[339322481,1727452238159,-1417.21536511,0.00016,2]
[339322482,1727452238169,-346.654381,0.00018904,2]
[339322483,1727452238178,-500.0,0.00018972,2]
[339322484,1727452238188,-300.0,0.00018999,2]
[339322485,1727452238198,-300.0,0.00018999,2]
[339322487,1727452238209,-1000.0,0.00019,19]
[339322489,1727452238220,-1000.0,0.00019,2]
[339322490,1727452238230,-3079.54281419,0.00019058,2]
[339322492,1727452238240,-1153.43100514,0.00019058,2]
[339322494,1727452238252,-500.0,0.00019067,2]
[339322496,1727452238263,-500.0,0.00019067,2]
[339322498,1727452238272,-500.0,0.00019067,2]
[339322500,1727452238283,-500.0,0.00019067,2]
[339322502,1727452238293,-500.0,0.00019067,2]
[339322504,1727452238302,-500.0,0.00019067,2]
[339322506,1727452238313,-500.0,0.00019067,2]
[339322508,1727452238322,-292.24399944,0.00019067,2]
[339322510,1727452238333,-1000.0,0.00019068,2]